[Event "*** Titled Tuesday Blitz"]
[Site "Chess.com"]
[Date "2021.02.02"]
[Round "2"]
[White "remi04"]
[Black "GigaQuparadze"]
[Result "1-0"]
[WhiteElo "2607"]
[BlackElo "2987"]
[TimeControl "180+1"]
[EndTime "10:22:18 PST"]
[Termination "remi04 won by resignation"]

1. e4 {[%clk 0:03:00.9]} 1... c5 {[%clk 0:02:58.7]} 2. Nf3 {[%clk 0:03:01.2]}
2... e6 {[%clk 0:02:58.5]} 3. d4 {[%clk 0:03:01.6]} 3... cxd4 {[%clk 0:02:59]}
4. Nxd4 {[%clk 0:03:02.2]} 4... a6 {[%clk 0:02:58.9]} 5. c4 {[%clk 0:03:01.7]}
5... Nf6 {[%clk 0:02:58.5]} 6. Nc3 {[%clk 0:03:01.9]} 6... Bb4 {[%clk
0:02:58.1]} 7. Qd3 {[%clk 0:02:57.5]} 7... O-O {[%clk 0:02:56.8]} 8. e5 {[%clk
0:02:57.5]} 8... Ne8 {[%clk 0:02:56.7]} 9. Nc2 {[%clk 0:02:57.2]} 9... Bxc3+
{[%clk 0:02:52.9]} 10. Qxc3 {[%clk 0:02:56.2]} 10... d6 {[%clk 0:02:53.1]} 11.
exd6 {[%clk 0:02:44.9]} 11... Nxd6 {[%clk 0:02:54]} 12. Bd3 {[%clk 0:02:45.1]}
12... e5 {[%clk 0:02:45.4]} 13. Be3 {[%clk 0:02:41.8]} 13... e4 {[%clk
0:02:44.3]} 14. Be2 {[%clk 0:02:41.6]} 14... Nf5 {[%clk 0:02:44.5]} 15. Bc5
{[%clk 0:02:26.3]} 15... Re8 {[%clk 0:02:38.7]} 16. Ne3 {[%clk 0:02:26.4]} 16...
Nxe3 {[%clk 0:02:36.9]} 17. Bxe3 {[%clk 0:02:25.2]} 17... Nc6 {[%clk 0:02:36.9]}
18. Rd1 {[%clk 0:02:24]} 18... Qe7 {[%clk 0:02:36.6]} 19. O-O {[%clk 0:02:18.9]}
19... Bf5 {[%clk 0:02:34.7]} 20. Rd5 {[%clk 0:02:03.5]} 20... Be6 {[%clk
0:02:26.1]} 21. Rg5 {[%clk 0:01:46.9]} 21... f6 {[%clk 0:01:54]} 22. Rg3 {[%clk
0:01:46.8]} 22... Rac8 {[%clk 0:01:52]} 23. b3 {[%clk 0:01:46.4]} 23... Ne5
{[%clk 0:01:51.2]} 24. Bd4 {[%clk 0:01:37.3]} 24... Bf5 {[%clk 0:01:48.7]} 25.
Re3 {[%clk 0:01:27.3]} 25... Nc6 {[%clk 0:01:19.7]} 26. Bb6 {[%clk 0:01:25.8]}
26... Qe5 {[%clk 0:01:18.7]} 27. Rd1 {[%clk 0:01:21.2]} 27... Qxc3 {[%clk
0:01:02.9]} 28. Rxc3 {[%clk 0:01:20.8]} 28... Nb4 {[%clk 0:01:02.9]} 29. a3
{[%clk 0:01:04.8]} 29... Nd3 {[%clk 0:01:02.3]} 30. Be3 {[%clk 0:00:54.9]} 30...
b5 {[%clk 0:00:42.9]} 31. c5 {[%clk 0:00:51.5]} 31... Rc6 {[%clk 0:00:41.2]} 32.
b4 {[%clk 0:00:51.1]} 32... a5 {[%clk 0:00:39.6]} 33. Bxd3 {[%clk 0:00:48.2]}
33... exd3 {[%clk 0:00:39.4]} 34. bxa5 {[%clk 0:00:33.6]} 34... Ra8 {[%clk
0:00:38.5]} 35. f3 {[%clk 0:00:33.4]} 35... Rxa5 {[%clk 0:00:38.6]} 36. g4
{[%clk 0:00:33]} 36... Bg6 {[%clk 0:00:38.3]} 37. h4 {[%clk 0:00:31.3]} 37... h6
{[%clk 0:00:38.6]} 38. h5 {[%clk 0:00:30.7]} 38... Bh7 {[%clk 0:00:38.5]} 39.
Kf2 {[%clk 0:00:30.9]} 39... Kf7 {[%clk 0:00:38.6]} 40. Rd2 {[%clk 0:00:28.6]}
40... Ke6 {[%clk 0:00:38.8]} 41. Rb2 {[%clk 0:00:28.3]} 41... Kd5 {[%clk
0:00:38.5]} 42. Rcb3 {[%clk 0:00:27.2]} 42... Kc4 {[%clk 0:00:37.9]} 43. Rb4+
{[%clk 0:00:27]} 43... Kd5 {[%clk 0:00:38.2]} 44. Rxb5 {[%clk 0:00:20.6]} 44...
Rxa3 {[%clk 0:00:37.8]} 45. Rb7 {[%clk 0:00:20.8]} 45... Rc3 {[%clk 0:00:37.4]}
46. Rd2 {[%clk 0:00:19.8]} 46... Bg8 {[%clk 0:00:26.3]} 47. Rxg7 {[%clk
0:00:19.2]} 47... Be6 {[%clk 0:00:25.5]} 48. Bxh6 {[%clk 0:00:19.1]} 48... R6xc5
{[%clk 0:00:23.3]} 49. Be3 {[%clk 0:00:19.6]} 49... Rc8 {[%clk 0:00:23.3]} 50.
h6 {[%clk 0:00:19.4]} 50... Rc2 {[%clk 0:00:23.6]} 51. h7 {[%clk 0:00:17.3]}
51... Rh8 {[%clk 0:00:23.7]} 52. Ke1 {[%clk 0:00:15.7]} 52... Rc1+ {[%clk
0:00:23.2]} 53. Kf2 {[%clk 0:00:15.5]} 53... Rc2 {[%clk 0:00:23.3]} 54. Ke1
{[%clk 0:00:07.9]} 54... Rc3 {[%clk 0:00:22.3]} 55. Ra7 {[%clk 0:00:05.7]} 55...
Kc4 {[%clk 0:00:20.3]} 56. Rc7+ {[%clk 0:00:05]} 56... Kb3 {[%clk 0:00:20.5]}
57. Re7 {[%clk 0:00:04.8]} 57... Bc4 {[%clk 0:00:20.3]} 58. Kf2 {[%clk
0:00:04.8]} 58... Rc2 {[%clk 0:00:20.2]} 59. Kg3 {[%clk 0:00:04.6]} 59... Kc3
{[%clk 0:00:20]} 60. Rd1 {[%clk 0:00:03.8]} 60... d2 {[%clk 0:00:19.3]} 61. Bh6
{[%clk 0:00:03.6]} 61... Be2 {[%clk 0:00:19.1]} 62. Rxe2 {[%clk 0:00:02.7]}
62... Rxh7 {[%clk 0:00:17.9]} 63. Bxd2+ {[%clk 0:00:03]} 63... Kd3 {[%clk
0:00:18.1]} 64. Re3+ {[%clk 0:00:02.1]} 64... Kc4 {[%clk 0:00:18.4]} 65. Ra3
{[%clk 0:00:02.3]} 65... Rd7 {[%clk 0:00:17.6]} 66. Ra4+ {[%clk 0:00:02.2]}
66... Kb5 {[%clk 0:00:17.3]} 67. Rf4 {[%clk 0:00:02.4]} 67... Rd6 {[%clk
0:00:16.7]} 68. Rf5+ {[%clk 0:00:02.3]} 68... Kc6 {[%clk 0:00:16.6]} 69. Rc1
{[%clk 0:00:02.7]} 69... Rxd2 {[%clk 0:00:14.9]} 70. Rxc2+ {[%clk 0:00:03]}
70... Rxc2 {[%clk 0:00:15.8]} 71. Rxf6+ {[%clk 0:00:03.6]} 71... Kd5 {[%clk
0:00:16.7]} 72. Kf4 {[%clk 0:00:04.2]} 72... Rc4+ {[%clk 0:00:16.2]} 73. Kg5
{[%clk 0:00:04.1]} 73... Rc1 {[%clk 0:00:15.8]} 74. f4 {[%clk 0:00:05]} 74...
Ke4 {[%clk 0:00:16.2]} 75. Re6+ {[%clk 0:00:05]} 75... Kf3 {[%clk 0:00:16.4]}
76. f5 {[%clk 0:00:05.9]} 76... Rc4 {[%clk 0:00:16.5]} 77. Kf6 {[%clk
0:00:05.5]} 77... Rxg4 {[%clk 0:00:16.2]} 78. Ke7 {[%clk 0:00:05.3]} 78... Rg7+
{[%clk 0:00:15.7]} 79. Kf8 {[%clk 0:00:05]} 79... Rc7 {[%clk 0:00:15.5]} 80. f6
{[%clk 0:00:05.4]} 80... Kf4 {[%clk 0:00:15.8]} 81. f7 {[%clk 0:00:05.8]} 81...
Kf5 {[%clk 0:00:16.2]} 82. Ra6 {[%clk 0:00:05.6]} 82... Rc1 {[%clk 0:00:15.9]}
83. Kg8 {[%clk 0:00:05.4]} 83... Rg1+ {[%clk 0:00:15.6]} 84. Kf8 {[%clk
0:00:05.7]} 84... Kg5 {[%clk 0:00:13.6]} 85. Kg7 {[%clk 0:00:04.8]} 85... Kf5+
{[%clk 0:00:13.3]} 86. Kh8 {[%clk 0:00:03.5]} 86... Rh1+ {[%clk 0:00:12.6]} 87.
Kg8 {[%clk 0:00:03.9]} 87... Rg1+ {[%clk 0:00:12.7]} 88. Kf8 {[%clk 0:00:04.4]}
88... Kg5 {[%clk 0:00:11.6]} 89. Rb6 {[%clk 0:00:04.7]} 89... Rg2 {[%clk
0:00:09.9]} 90. Rc6 {[%clk 0:00:04.9]} 90... Rg1 {[%clk 0:00:10]} 91. Ke7 {[%clk
0:00:05]} 91... Re1+ {[%clk 0:00:10]} 92. Re6 {[%clk 0:00:05.5]} 1-0

[Event "*** Titled Tuesday Blitz"]
[Site "Chess.com"]
[Date "2021.02.02"]
[Round "2"]
[White "enriquetejedor"]
[Black "vovachesss"]
[Result "1-0"]
[WhiteElo "2518"]
[BlackElo "2733"]
[TimeControl "180+1"]
[EndTime "10:22:19 PST"]
[Termination "enriquetejedor won by resignation"]

1. e4 {[%clk 0:03:00.9]} 1... e5 {[%clk 0:02:57.6]} 2. Nf3 {[%clk 0:02:59.8]}
2... d6 {[%clk 0:02:58.3]} 3. d4 {[%clk 0:02:58.1]} 3... Nd7 {[%clk 0:02:59]} 4.
Bc4 {[%clk 0:02:56.6]} 4... c6 {[%clk 0:02:58.1]} 5. dxe5 {[%clk 0:02:46.4]}
5... dxe5 {[%clk 0:02:54]} 6. O-O {[%clk 0:02:39.9]} 6... Be7 {[%clk 0:02:52.8]}
7. Ng5 {[%clk 0:02:37.3]} 7... Bxg5 {[%clk 0:02:51.7]} 8. Qh5 {[%clk 0:02:36.4]}
8... Qe7 {[%clk 0:02:52.2]} 9. Bxg5 {[%clk 0:02:34.5]} 9... Ngf6 {[%clk
0:02:47.6]} 10. Qe2 {[%clk 0:02:26.4]} 10... Nc5 {[%clk 0:02:38.3]} 11. Nd2
{[%clk 0:02:23.6]} 11... O-O {[%clk 0:02:33.8]} 12. a3 {[%clk 0:02:02.1]} 12...
b5 {[%clk 0:02:30.3]} 13. Ba2 {[%clk 0:01:56.9]} 13... Be6 {[%clk 0:02:30.2]}
14. f3 {[%clk 0:01:45.1]} 14... Na4 {[%clk 0:02:12.4]} 15. Rfb1 {[%clk
0:01:40.6]} 15... Bxa2 {[%clk 0:02:07.8]} 16. Rxa2 {[%clk 0:01:39.8]} 16... Qc5+
{[%clk 0:01:52.7]} 17. Qe3 {[%clk 0:01:38.3]} 17... Qxc2 {[%clk 0:01:38.7]} 18.
Rba1 {[%clk 0:01:23.9]} 18... Qc5 {[%clk 0:00:58.6]} 19. b3 {[%clk 0:01:07.9]}
19... Qxe3+ {[%clk 0:00:47.4]} 20. Bxe3 {[%clk 0:01:08.8]} 20... Nb6 {[%clk
0:00:20.3]} 21. Rc1 {[%clk 0:01:07.2]} 21... Rfd8 {[%clk 0:00:19.1]} 22. Rxc6
{[%clk 0:01:04.3]} 22... Rd3 {[%clk 0:00:18.5]} 23. Kf2 {[%clk 0:01:04.3]} 23...
Rad8 {[%clk 0:00:17.8]} 24. Ke2 {[%clk 0:01:02.7]} 24... h6 {[%clk 0:00:13.2]}
25. Rac2 {[%clk 0:01:00.1]} 25... Nh5 {[%clk 0:00:08]} 26. g3 {[%clk 0:00:59.7]}
26... Nf6 {[%clk 0:00:07.3]} 27. g4 {[%clk 0:00:58.6]} 27... R3d7 {[%clk
0:00:04.8]} 28. h4 {[%clk 0:00:55.4]} 28... Nh7 {[%clk 0:00:04.1]} 29. Bxb6
{[%clk 0:00:53.5]} 29... axb6 {[%clk 0:00:04.2]} 30. Rxb6 {[%clk 0:00:54.4]}
30... Nf8 {[%clk 0:00:04.5]} 31. b4 {[%clk 0:00:26.2]} 31... Ne6 {[%clk
0:00:05]} 32. Nb3 {[%clk 0:00:26.3]} 32... Nf4+ {[%clk 0:00:05.4]} 33. Kf2
{[%clk 0:00:24.8]} 33... Rd3 {[%clk 0:00:06.3]} 34. Nc5 {[%clk 0:00:21.7]} 34...
Rxa3 {[%clk 0:00:06.6]} 35. Rxb5 {[%clk 0:00:21.8]} 35... Nd3+ {[%clk
0:00:06.9]} 36. Kg3 {[%clk 0:00:19.2]} 36... Ne1 {[%clk 0:00:06.5]} 37. Rf2
{[%clk 0:00:18.8]} 37... Nd3 {[%clk 0:00:06.2]} 38. Nxd3 {[%clk 0:00:18.6]}
38... Rdxd3 {[%clk 0:00:06.9]} 39. Rxe5 {[%clk 0:00:19]} 39... Rab3 {[%clk
0:00:07.6]} 40. Re8+ {[%clk 0:00:19.3]} 40... Kh7 {[%clk 0:00:07.7]} 41. Re7
{[%clk 0:00:19.8]} 41... f6 {[%clk 0:00:07.9]} 42. Rb7 {[%clk 0:00:20]} 42...
Rd4 {[%clk 0:00:06.9]} 43. Kf4 {[%clk 0:00:10.4]} 43... Rc4 {[%clk 0:00:04.7]}
44. b5 {[%clk 0:00:08.5]} 44... Rcb4 {[%clk 0:00:04.4]} 45. h5 {[%clk
0:00:06.9]} 45... Kg8 {[%clk 0:00:03.6]} 46. Rd2 {[%clk 0:00:04.1]} 46... Rxb5
{[%clk 0:00:01.9]} 47. Rd8+ {[%clk 0:00:04.4]} 47... Kh7 {[%clk 0:00:02]} 48.
Rxb5 {[%clk 0:00:04.3]} 48... Rxb5 {[%clk 0:00:02.2]} 49. Rd1 {[%clk 0:00:05.2]}
49... Rb3 {[%clk 0:00:02.3]} 50. Rf1 {[%clk 0:00:05.5]} 50... Rb5 {[%clk
0:00:02.1]} 51. Rd1 {[%clk 0:00:05.7]} 51... Rb3 {[%clk 0:00:02.2]} 52. Rd4
{[%clk 0:00:05.6]} 52... Ra3 {[%clk 0:00:02.7]} 53. Rd5 {[%clk 0:00:05.9]} 53...
Rb3 {[%clk 0:00:03.3]} 54. Rd6 {[%clk 0:00:06.3]} 54... Rc3 {[%clk 0:00:03.9]}
55. Rd8 {[%clk 0:00:06.6]} 55... Rb3 {[%clk 0:00:04.4]} 56. Rc8 {[%clk
0:00:06.8]} 56... Ra3 {[%clk 0:00:04.9]} 57. Rb8 {[%clk 0:00:07.1]} 57... Rc3
{[%clk 0:00:05.6]} 58. Kg3 {[%clk 0:00:07.2]} 58... Rd3 {[%clk 0:00:06]} 59. Rb7
{[%clk 0:00:07.5]} 59... Rc3 {[%clk 0:00:06.5]} 60. Re7 {[%clk 0:00:07.8]} 60...
Rd3 {[%clk 0:00:06.8]} 61. Ra7 {[%clk 0:00:08.1]} 61... Rb3 {[%clk 0:00:07.1]}
62. Ra1 {[%clk 0:00:08.4]} 62... Rc3 {[%clk 0:00:07.6]} 63. Rg1 {[%clk
0:00:08.7]} 63... Rb3 {[%clk 0:00:08.1]} 64. Rg2 {[%clk 0:00:09.1]} 64... Rc3
{[%clk 0:00:08.6]} 65. Rh2 {[%clk 0:00:09.5]} 65... Rb3 {[%clk 0:00:09.1]} 66.
Rh1 {[%clk 0:00:09.9]} 66... Rc3 {[%clk 0:00:09.7]} 67. Rb1 {[%clk 0:00:10.1]}
67... Rd3 {[%clk 0:00:10.2]} 68. Kf4 {[%clk 0:00:10.2]} 68... Rc3 {[%clk
0:00:10.8]} 69. Re1 {[%clk 0:00:10]} 69... Rd3 {[%clk 0:00:11.1]} 70. Rf1 {[%clk
0:00:10.1]} 70... Rc3 {[%clk 0:00:11.6]} 71. Kf5 {[%clk 0:00:10]} 71... Rb3
{[%clk 0:00:11.7]} 72. f4 {[%clk 0:00:10]} 72... Kg8 {[%clk 0:00:11]} 73. Rc1
{[%clk 0:00:08.9]} 73... Rb7 {[%clk 0:00:07.5]} 74. Rc8+ {[%clk 0:00:08.9]}
74... Kf7 {[%clk 0:00:07.9]} 75. Rc5 {[%clk 0:00:08.8]} 75... Rd7 {[%clk
0:00:06.6]} 76. Rd5 {[%clk 0:00:08.4]} 76... Rc7 {[%clk 0:00:05.7]} 77. Ra5
{[%clk 0:00:08.6]} 77... Re7 {[%clk 0:00:05.8]} 78. e5 {[%clk 0:00:08.8]} 78...
fxe5 {[%clk 0:00:06.7]} 79. fxe5 {[%clk 0:00:09.7]} 79... Rb7 {[%clk 0:00:06.7]}
80. e6+ {[%clk 0:00:09.6]} 80... Ke7 {[%clk 0:00:07]} 81. Rd5 {[%clk 0:00:07.3]}
81... Ra7 {[%clk 0:00:05.9]} 82. Rd7+ {[%clk 0:00:05.2]} 82... Rxd7 {[%clk
0:00:03.8]} 83. exd7 {[%clk 0:00:06.1]} 83... Kxd7 {[%clk 0:00:03.9]} 84. Kg6
{[%clk 0:00:06.7]} 84... Ke8 {[%clk 0:00:02.3]} 85. Kxg7 {[%clk 0:00:06.9]}
85... Ke7 {[%clk 0:00:02.2]} 86. Kxh6 {[%clk 0:00:07.1]} 86... Kf7 {[%clk
0:00:03.1]} 87. g5 {[%clk 0:00:07.6]} 87... Kg8 {[%clk 0:00:03.5]} 88. Kg6
{[%clk 0:00:07]} 88... Kh8 {[%clk 0:00:03.2]} 89. Kf6 {[%clk 0:00:07.9]} 89...
Kg8 {[%clk 0:00:02.7]} 90. g6 {[%clk 0:00:08.8]} 90... Kh8 {[%clk 0:00:03.5]}
91. h6 {[%clk 0:00:07.6]} 91... Kg8 {[%clk 0:00:03.8]} 92. h7+ {[%clk
0:00:07.5]} 92... Kh8 {[%clk 0:00:03.9]} 93. g7+ {[%clk 0:00:07.6]} 93... Kxh7
{[%clk 0:00:04.8]} 94. Kf7 {[%clk 0:00:08.1]} 94... Kh6 {[%clk 0:00:05.4]} 95.
g8=Q {[%clk 0:00:08.6]} 1-0

[Event "*** Titled Tuesday Blitz"]
[Site "Chess.com"]
[Date "2021.02.02"]
[Round "2"]
[White "azikom"]
[Black "Vyacheslav_N"]
[Result "1-0"]
[WhiteElo "2651"]
[BlackElo "2384"]
[TimeControl "180+1"]
[EndTime "10:22:37 PST"]
[Termination "azikom won by checkmate"]

1. d4 {[%clk 0:03:00]} 1... Nf6 {[%clk 0:02:58.7]} 2. c4 {[%clk 0:02:59.7]} 2...
e6 {[%clk 0:02:58.9]} 3. Nc3 {[%clk 0:03:00.2]} 3... Bb4 {[%clk 0:02:59.5]} 4.
Qc2 {[%clk 0:03:00.6]} 4... O-O {[%clk 0:02:58.4]} 5. a3 {[%clk 0:03:00.5]} 5...
Bxc3+ {[%clk 0:02:56.8]} 6. Qxc3 {[%clk 0:03:00.8]} 6... d6 {[%clk 0:02:57.5]}
7. Bg5 {[%clk 0:03:00.3]} 7... h6 {[%clk 0:02:51.6]} 8. Bh4 {[%clk 0:03:00.1]}
8... Nc6 {[%clk 0:02:48.2]} 9. e3 {[%clk 0:02:58.5]} 9... a5 {[%clk 0:02:38.6]}
10. Bd3 {[%clk 0:02:55.9]} 10... Bd7 {[%clk 0:02:29.1]} 11. Ne2 {[%clk
0:02:54.4]} 11... Re8 {[%clk 0:02:07.4]} 12. O-O {[%clk 0:02:52.1]} 12... e5
{[%clk 0:02:05.4]} 13. Rfe1 {[%clk 0:02:29.9]} 13... e4 {[%clk 0:01:58.3]} 14.
Bc2 {[%clk 0:02:29.6]} 14... g5 {[%clk 0:01:54.8]} 15. Bg3 {[%clk 0:02:29.3]}
15... a4 {[%clk 0:01:53.3]} 16. Rac1 {[%clk 0:02:12.1]} 16... b6 {[%clk
0:01:42.3]} 17. Bb1 {[%clk 0:02:10.1]} 17... Nh5 {[%clk 0:01:35.1]} 18. c5
{[%clk 0:02:08.9]} 18... bxc5 {[%clk 0:01:32.8]} 19. dxc5 {[%clk 0:02:08.9]}
19... d5 {[%clk 0:01:33.3]} 20. Ba2 {[%clk 0:02:08.5]} 20... Ne7 {[%clk
0:01:27.7]} 21. Nd4 {[%clk 0:01:53.8]} 21... c6 {[%clk 0:01:25.3]} 22. Bd6
{[%clk 0:01:52.6]} 22... Nf5 {[%clk 0:01:23.1]} 23. Nxf5 {[%clk 0:01:51.5]}
23... Bxf5 {[%clk 0:01:24]} 24. Red1 {[%clk 0:01:47.1]} 24... Qf6 {[%clk
0:01:20.5]} 25. Qxf6 {[%clk 0:01:45.9]} 25... Nxf6 {[%clk 0:01:21.4]} 26. Rd4
{[%clk 0:01:45.5]} 26... Rec8 {[%clk 0:01:01]} 27. Rb4 {[%clk 0:01:44.6]} 27...
Ne8 {[%clk 0:01:00.8]} 28. Bg3 {[%clk 0:01:41.8]} 28... Be6 {[%clk 0:00:59.7]}
29. Bb1 {[%clk 0:01:38.5]} 29... Ra7 {[%clk 0:00:52.2]} 30. Bc2 {[%clk
0:01:33.3]} 30... Rca8 {[%clk 0:00:52.4]} 31. Bb8 {[%clk 0:01:32]} 31... Ra5
{[%clk 0:00:47.7]} 32. Bd1 {[%clk 0:01:21.8]} 32... f5 {[%clk 0:00:47.3]} 33.
Rb6 {[%clk 0:01:18.3]} 33... Bd7 {[%clk 0:00:33.9]} 34. Be5 {[%clk 0:01:16.5]}
34... R5a6 {[%clk 0:00:22.4]} 35. Rb7 {[%clk 0:01:10.9]} 35... R6a7 {[%clk
0:00:22.6]} 36. Rb4 {[%clk 0:01:10]} 36... Kf7 {[%clk 0:00:21.3]} 37. h3 {[%clk
0:01:07.4]} 37... Ke6 {[%clk 0:00:21.7]} 38. Bd4 {[%clk 0:01:06.4]} 38... Nc7
{[%clk 0:00:19.8]} 39. Be2 {[%clk 0:01:03]} 39... Ra5 {[%clk 0:00:14.5]} 40. Rb7
{[%clk 0:01:02]} 40... Nb5 {[%clk 0:00:13.8]} 41. Bxb5 {[%clk 0:00:37.5]} 41...
Rxb5 {[%clk 0:00:12.5]} 42. Rxb5 {[%clk 0:00:37.1]} 42... cxb5 {[%clk
0:00:13.4]} 43. c6 {[%clk 0:00:37.6]} 43... Rc8 {[%clk 0:00:12.7]} 44. c7 {[%clk
0:00:37.9]} 44... Kd6 {[%clk 0:00:12.5]} 45. Bb6 {[%clk 0:00:38]} 45... Bc6
{[%clk 0:00:12.1]} 46. Ba5 {[%clk 0:00:36.3]} 46... Kd7 {[%clk 0:00:12.1]} 47.
f3 {[%clk 0:00:23.9]} 47... Ra8 {[%clk 0:00:11.4]} 48. Bb6 {[%clk 0:00:23.5]}
48... Bb7 {[%clk 0:00:09.9]} 49. Kf2 {[%clk 0:00:22.4]} 49... Ra6 {[%clk
0:00:09.6]} 50. Bd4 {[%clk 0:00:20.5]} 50... Rc6 {[%clk 0:00:09]} 51. Rxc6
{[%clk 0:00:20.3]} 51... Bxc6 {[%clk 0:00:09.6]} 52. Be5 {[%clk 0:00:20.7]}
52... Bb7 {[%clk 0:00:09.9]} 53. f4 {[%clk 0:00:20.9]} 53... Ke6 {[%clk
0:00:09.7]} 54. g3 {[%clk 0:00:20.6]} 54... g4 {[%clk 0:00:08.7]} 55. h4 {[%clk
0:00:19.8]} 55... h5 {[%clk 0:00:08.4]} 56. Ke1 {[%clk 0:00:20.2]} 56... Kd7
{[%clk 0:00:08.9]} 57. Kd2 {[%clk 0:00:21.1]} 57... Kc6 {[%clk 0:00:09.5]} 58.
Kc3 {[%clk 0:00:21.6]} 58... Kc5 {[%clk 0:00:10.1]} 59. Bf6 {[%clk 0:00:21.3]}
59... Bc8 {[%clk 0:00:09.8]} 60. Bd8 {[%clk 0:00:20.6]} 60... d4+ {[%clk
0:00:07]} 61. exd4+ {[%clk 0:00:20.5]} 61... Kd5 {[%clk 0:00:07.9]} 62. Bf6
{[%clk 0:00:20.3]} 62... Bd7 {[%clk 0:00:08]} 63. Be5 {[%clk 0:00:20.4]} 63...
Bc8 {[%clk 0:00:08.3]} 64. Kd2 {[%clk 0:00:20.5]} 64... Bd7 {[%clk 0:00:08.9]}
65. Ke3 {[%clk 0:00:20.8]} 65... Kc4 {[%clk 0:00:08.1]} 66. Bf6 {[%clk
0:00:20.9]} 66... Be6 {[%clk 0:00:07.7]} 67. d5 {[%clk 0:00:20.3]} 67... Kxd5
{[%clk 0:00:07.8]} 68. Kd2 {[%clk 0:00:20.5]} 68... Kd6 {[%clk 0:00:07.4]} 69.
Be5+ {[%clk 0:00:20.6]} 69... Kc6 {[%clk 0:00:07.3]} 70. Kc3 {[%clk 0:00:21]}
70... Kc5 {[%clk 0:00:07.2]} 71. Bd4+ {[%clk 0:00:20.6]} 71... Kd5 {[%clk
0:00:07.2]} 72. Be3 {[%clk 0:00:20.4]} 72... Bc8 {[%clk 0:00:07.6]} 73. Kb4
{[%clk 0:00:20.2]} 73... Kc6 {[%clk 0:00:08.2]} 74. Bd4 {[%clk 0:00:19.3]} 74...
Kxc7 {[%clk 0:00:06.8]} 75. Kxb5 {[%clk 0:00:19.4]} 75... Bd7+ {[%clk
0:00:07.7]} 76. Kc5 {[%clk 0:00:19.8]} 76... Kb7 {[%clk 0:00:08]} 77. Kd5 {[%clk
0:00:20.1]} 77... Bc8 {[%clk 0:00:08]} 78. Ke5 {[%clk 0:00:20]} 78... Kc6 {[%clk
0:00:08.6]} 79. Kf6 {[%clk 0:00:20.2]} 79... Kd5 {[%clk 0:00:09.1]} 80. Be3
{[%clk 0:00:20.1]} 80... Bd7 {[%clk 0:00:09.6]} 81. Kg6 {[%clk 0:00:19.7]} 81...
Kc4 {[%clk 0:00:08.5]} 82. Kxh5 {[%clk 0:00:19.5]} 82... Kd3 {[%clk 0:00:09]}
83. Bb6 {[%clk 0:00:18.1]} 83... e3 {[%clk 0:00:07.4]} 84. Kg5 {[%clk 0:00:18]}
84... e2 {[%clk 0:00:06]} 85. Bf2 {[%clk 0:00:18.2]} 85... Ke4 {[%clk
0:00:06.2]} 86. h5 {[%clk 0:00:18.1]} 86... Kf3 {[%clk 0:00:06.5]} 87. Be1
{[%clk 0:00:18.7]} 87... Kg2 {[%clk 0:00:06.6]} 88. h6 {[%clk 0:00:18.8]} 88...
Kf1 {[%clk 0:00:07.5]} 89. Bc3 {[%clk 0:00:18.8]} 89... Kf2 {[%clk 0:00:06.7]}
90. h7 {[%clk 0:00:18.8]} 90... Kxg3 {[%clk 0:00:07.6]} 91. h8=Q {[%clk
0:00:19.3]} 91... Bb5 {[%clk 0:00:07.5]} 92. Qd4 {[%clk 0:00:19.2]} 92... Ba6
{[%clk 0:00:03.6]} 93. Qe3+ {[%clk 0:00:19.2]} 93... Kg2 {[%clk 0:00:03.4]} 94.
Be1 {[%clk 0:00:19.1]} 94... Bb7 {[%clk 0:00:02]} 95. Qf2+ {[%clk 0:00:18.9]}
95... Kh1 {[%clk 0:00:02.9]} 96. Kxf5 {[%clk 0:00:18.7]} 96... Bg2 {[%clk
0:00:03.8]} 97. Kxg4 {[%clk 0:00:17.7]} 97... Bf3+ {[%clk 0:00:04.7]} 98. Kg3
{[%clk 0:00:17.2]} 98... Bg2 {[%clk 0:00:04.6]} 99. Qxg2# {[%clk 0:00:17.1]} 1-0